Cogmind - Beta 11 @@@ ROGUE MODE // 2022.03.31 @ 20:34:05 Player: Shadow Pussy wanter Result: Destroyed by G-73 Enforcer with Heavy Laser Performance ------------- Evolutions (9) 4500 Regions Visited (17) 3400 Robots Destroyed (60) 300 Value Destroyed (1831) 1831 Prototype IDs (26) 520 Alien Tech Used (0) 0 Bonus (364) 364 TOTAL SCORE: 10915 Bonus ------- High Alert Combat Kills 40 Follower Combat Kills 32 Aligned with FarCom 300 Friendly Fire -8 Cogmind --------- Core Integrity 0/1600 Matter 290/300 Energy 100/100 System Corruption 11% Temperature Cool (6) Movement Core (50) Location -1/Command Parts ------- > --- POWER (2) -------- (None) > --- PROPULSION (6) --- (None) > --- UTILITY (14) ----- (None) > --- WEAPON (3) ------- (None) > --- INVENTORY (5) ---- Micro Antimatter Reactor Wheel Improved Phase Shifter Cloak of Protection Peak State ------------ > --- POWER ------------ Neutrino Core Micro Antimatter Reactor > --- PROPULSION ------- Improved Antigrav System Cooled Linear Gravjet Impulse Thruster Impulse Thruster Impulse Thruster Q-thruster > --- UTILITY ---------- Advanced Heat Sink Small Storage Unit Advanced Weight Redist. System Advanced Signal Interpreter Advanced Terrain Scan Processor Advanced Melee Analysis Suite Advanced Melee Analysis Suite Advanced ECM Suite Graphene Brace Hacking Suite Hacking Suite System Shield System Shield > --- WEAPON ----------- Power Sword > --- INVENTORY -------- Angular Momentum Engine Heavy Antimatter Reactor Centrium Leg Improved Phase Shifter Cloak of Protection [Rating: 119] Favorites ----------- Power Improved Ion Engine Engine Improved Ion Engine Power Core Neutrino Core Reactor Heavy Antimatter Reactor Propulsion Xenon Bombardment Thruster Treads Light Treads Leg Aluminum Leg Wheel Compact Wheel Hover Unit Improved Antigrav System Flight Unit Xenon Bombardment Thruster Utility System Shield Device Advanced Weight Redist. System Storage Small Storage Unit Processor Advanced Melee Analysis Suite Hackware System Shield Protection Improved Light Armor Plating Weapon Flak Cannon Energy Gun Beamcaster Energy Cannon Heavy Phase Cannon Ballistic Gun Light Assault Rifle Ballistic Cannon Flak Cannon Impact Weapon Heavy Mace Slashing Weapon Power Sword Build | -11 -10 -10 -9 -9 -9 -8 -8 -7 -7 -7 -6 -5 -4 -3 -2 -1 -1 ------- Run | Scr Mat Min Mat Min Exi Min Mat Fac Was Fac Fac Fac Fac Res Res Acc Com Slots Evolved 18 | . . . 2 . . . 2 2 . . 2 2 2 2 2 2 . Power 1 | . . . . . . . . . . . . . 1 . . . . Propulsion 4 | . . . 2 . . . . . . . 1 1 . . . . . Utility 12 | . . . . . . . 2 2 . . 1 1 1 2 2 1 . Weapon 1 | . . . . . . . . . . . . . . . . 1 . Parts Attached 121 | 7 3 2 10 1 . 5 12 7 1 1 12 2 8 11 22 16 1 Power 22 | 1 1 . 2 . . . 1 . . . 4 . 3 4 4 2 . Engine 12 | 1 1 . 2 . . . . . . . 4 . 2 1 1 . . Core 6 | . . . . . . . 1 . . . . . 1 2 2 . . Reactor 4 | . . . . . . . . . . . . . . 1 1 2 . Propulsion 40 | 2 . 1 4 . . 3 4 1 . . 3 . 1 1 11 9 . Treads 3 | 1 . . 1 . . . . . . . 1 . . . . . . Leg 9 | . . . 3 . . 3 . . . . 1 . . . 1 1 . Wheel 4 | 1 . 1 . . . . . . . . . . . . . 2 . Hover 11 | . . . . . . . . . . . . . . . 5 6 . Flight 13 | . . . . . . . 4 1 . . 1 . 1 1 5 . . Utility 29 | 1 2 . 1 1 . . 5 4 . . 3 1 3 3 3 2 . Device 12 | . . . . . . . 1 3 . . 1 . 2 2 2 1 . Storage 4 | 1 1 . 1 . . . 1 . . . . . . . . . . Processor 8 | . 1 . . 1 . . 1 . . . 2 1 1 . . 1 . Hackware 4 | . . . . . . . 1 1 . . . . . 1 1 . . Protection 1 | . . . . . . . 1 . . . . . . . . . . Artifact . | . . . . . . . . . . . . . . . . . . Weapon 30 | 3 . 1 3 . . 2 2 2 1 1 2 1 1 3 4 3 1 Energy Gun 5 | 1 . . . . . 1 1 1 1 . . . . . . . . Energy Cannon 10 | . . . . . . . . . . . 1 1 . 3 2 2 1 Ballistic Gun 4 | 2 . 1 1 . . . . . . . . . . . . . . Ballistic Cannon 4 | . . . 2 . . 1 . . . . . . . . . 1 . Launcher . | . . . . . . . . . . . . . . . . . . Special Weapon . | . . . . . . . . . . . . . . . . . . Impact Weapon 2 | . . . . . . . . 1 . 1 . . . . . . . Slashing Weapon 5 | . . . . . . . 1 . . . 1 . 1 . 2 . . Piercing Weapon . | . . . . . . . . . . . . . . . . . . Special Melee Weapon . | . . . . . . . . . . . . . . . . . . Unidentified Prototypes 2 | . . . . . . . 1 . . . . . . . 1 . . Parts Lost 44 | . 1 2 3 1 . 2 . 1 . . . . 4 1 15 6 8 Power 4 | . 1 . . . . . . . . . . . 1 . 1 . 1 Propulsion 28 | . . 1 2 1 . 2 . 1 . . . . 2 1 10 5 3 Utility 6 | . . . . . . . . . . . . . 1 . 3 . 2 Weapon 6 | . . 1 1 . . . . . . . . . . . 1 1 2 Highest Loss Streak 8 | . 1 1 2 1 . 1 . 1 . . . . 2 1 5 4 8 To Critical Strikes 1 | . . . . . . . . . . . . . . . . . 1 Average Slot Usage (%) 81 | . 98 97 98 89 88 81 94 97 100 100 96 94 79 77 83 17 26 Engine 5 | . 14 14 11 11 11 11 5 . . . 5 5 4 . . . . Core 1 | . . . . . . . 3 7 7 7 . . . 3 3 . . Treads 5 | . 14 14 20 11 11 7 . . . . . . . . . . . Leg 7 | . . . 21 23 22 19 10 . . . . . . . . 3 . Wheel 1 | . 14 13 1 . . . . . . . . . . . . 1 . Hover 1 | . . . . . . . . . . . . . . . 3 5 11 Flight 11 | . . . . . . . 24 29 30 30 29 29 21 20 15 . . Device 5 | . . . . . . . 4 7 7 7 12 11 9 13 15 1 3 Storage 7 | . 14 14 11 11 11 11 9 7 7 7 6 5 5 4 4 . . Processor 12 | . 12 14 11 11 11 11 14 15 15 15 13 17 20 19 17 1 4 Hackware 5 | . . . . . . . 3 12 15 15 13 11 10 9 16 . . Energy Cannon 1 | . . . . . . . . . . . 2 5 5 3 1 1 3 Ballistic Gun 2 | . 28 26 6 . . . . . . . . . . . . . . Ballistic Cannon 7 | . . . 15 22 22 20 12 7 7 3 . . . . . . . Naked Turns 12 | . . . . . . . . . . . . . . . 5 . 7 Heaviest Build 46 | 13 18 18 39 39 39 39 44 22 22 22 27 29 46 44 35 32 32 Greatest Support 52 | 10 10 16 40 30 20 40 40 33 24 24 29 29 33 41 52 40 40 Greatest Overweight (x) 12 | 4 1 1 1 1 1 12 4 . . . 1 . 2 1 1 10 4 Average Overweight (x) . | 2 . . . 1 1 . . . . . . . . . . . . Largest Inventory Capacity 15 | 8 10 10 15 15 15 15 15 8 8 8 8 8 8 8 8 5 5 Average Capacity 9 | 7 8 10 11 15 15 15 9 8 8 8 8 8 8 8 7 5 5 Most Carried 15 | 6 8 9 11 15 15 15 15 8 8 8 8 8 8 8 8 5 5 Average Carried 8 | 4 7 8 9 12 15 14 9 7 8 7 7 8 7 7 6 4 4 Final Capacity 15 | 8 10 10 15 15 15 15 8 8 8 8 8 8 8 8 5 5 5 Final Carried 15 | 6 8 9 10 15 15 15 8 8 8 8 8 8 7 7 5 4 4 Class Distribution -------------------- 50% | Mutant 28% | Hacker-Sprinter 8% | Hacker-Scout 5% | Sprinter 4% | Hacker-Mutant Dominant Class ---------------- Mutant | -10/Materials Mutant | -10/Mines Mutant | -9/Materials Mutant | -9/Mines Mutant | -9/Exiles Mutant | -8/Mines Sprinter | -8/Materials Hacker-Sprinter | -7/Factory Hacker-Sprinter | -7/Waste Hacker-Sprinter | -7/Factory Hacker-Scout | -6/Factory Hacker-Scout | -5/Factory Hacker-Sprinter | -4/Factory Hacker-Sprinter | -3/Research Hacker-Sprinter | -2/Research Mutant | -1/Access Mutant | -1/Command Resources | -11 -10 -10 -9 -9 -9 -8 -8 -7 -7 -7 -6 -5 -4 -3 -2 -1 -1 ----------- Run | Scr Mat Min Mat Min Exi Min Mat Fac Was Fac Fac Fac Fac Res Res Acc Com Matter Collected 2115 | 274 139 89 169 247 . 182 . 279 . . 100 . 140 80 135 281 . Remotely . | . . . . . . . . . . . . . . . . . . Salvage Created 1898 | 102 326 134 241 103 . 113 . 126 . . 31 . 160 . 135 427 . Parts 114 | 2 14 14 17 8 . 10 . 4 . . . . 7 . 11 27 . Haulers Intercepted . | . . . . . . . . . . . . . . . . . . Recyclers Shooed 3 | 1 . 1 . . . . . . . . . . . . . 1 . Parts Field Recycled . | . . . . . . . . . . . . . . . . . . Retrieved Matter . | . . . . . . . . . . . . . . . . . . Parts Self-Destructed . | . . . . . . . . . . . . . . . . . . Prevented . | . . . . . . . . . . . . . . . . . . Kills | -11 -10 -10 -9 -9 -9 -8 -8 -7 -7 -7 -6 -5 -4 -3 -2 -1 -1 ------- Run | Scr Mat Min Mat Min Exi Min Mat Fac Was Fac Fac Fac Fac Res Res Acc Com Combat Hostiles Destroyed 46 | . 6 5 11 6 . 7 . 4 . . . . 2 . 2 3 . Melee 3 | . . . . . . . . . . . . . 2 . 1 . . Guns 18 | . 6 5 4 . . 2 . 1 . . . . . . . . . Cannons 24 | . . . 7 6 . 5 . 3 . . . . . . . 3 . Classes Destroyed 11 | 2 2 . 1 . . 3 . 1 . . 1 . . . . 1 . Worker 4 | . . . . . . 1 . . . . . . . . . 3 . Builder 1 | . . . . . . . . . . . . . . . . 1 . Tunneler 2 | 1 . 1 . . . . . . . . . . . . . . . Recycler 5 | 1 2 . 1 . . . . . . . . . . . . 1 . Watcher 2 | . . . . . . . . . . . 1 . . . . 1 . Swarmer 18 | . 2 3 8 2 . 3 . . . . . . . . . . . Grunt 16 | . 4 2 2 4 . 1 . 3 . . . . . . . . . Duelist 1 | . . . . . . 1 . . . . . . . . . . . Sentry 3 | . . . 1 . . . . . . . . . 2 . . . . Hunter 2 | . . . . . . 2 . . . . . . . . . . . Programmer 6 | . . . . . . . . 1 . . . . . . 2 3 . Best Kill Streak 5 | 2 4 3 5 3 . 4 . 2 . . 1 . 1 . 1 5 . Combat Bots Only 4 | . 2 3 4 3 . 3 . 2 . . . . 1 . 1 3 . Max Kills in Single Turn 2 | 1 1 1 2 1 . 1 . 1 . . 1 . 1 . 1 2 . Gunslinging . | . . . . . . . . . . . . . . . . . . Exploded . | . . . . . . . . . . . . . . . . . . Melee 1 | . . . . . . . . . . . . . 1 . 1 . . Uniques/NPCs Destroyed . | . . . . . . . . . . . . . . . . . . Combat | -11 -10 -10 -9 -9 -9 -8 -8 -7 -7 -7 -6 -5 -4 -3 -2 -1 -1 -------- Run | Scr Mat Min Mat Min Exi Min Mat Fac Was Fac Fac Fac Fac Res Res Acc Com Damage Taken 7786 | . 262 263 312 96 . 429 . 193 . . 17 . 315 24 2297 1283 2295 Core 2892 | . 27 43 39 12 . 68 . . . . . . 93 . 1007 271 1332 Absorbed by Shields 259 | . . . . . . . . . . . . . . . . . 259 Regen/Repaired (Parts) 37 | . . . . . . . . 37 . . . . . . . . . Core Remaining (%) 86 | 100 . 72 . . . 70 100 . . 100 100 100 91 100 30 . . Volleys Fired 266 | 4 31 26 35 10 . 18 . 14 . . 10 6 15 37 24 24 12 Largest 2 | 2 2 2 2 2 . 2 . 2 . . 1 1 1 1 1 2 1 Hottest 186 | 60 40 40 88 88 . 119 . 119 . . 85 90 90 90 90 186 120 Shots Fired 379 | 8 62 40 56 20 . 31 . 28 . . 10 6 15 37 24 30 12 Gun 154 | 8 62 40 26 . . 4 . 14 . . . . . . . . . Cannon 225 | . . . 30 20 . 27 . 14 . . 10 6 15 37 24 30 12 Launcher . | . . . . . . . . . . . . . . . . . . Special . | . . . . . . . . . . . . . . . . . . Kinetic 233 | 4 62 40 56 20 . 27 . 14 . . . . . . . 10 . Thermal 142 | . . . . . . 4 . 14 . . 10 6 15 37 24 20 12 Explosive . | . . . . . . . . . . . . . . . . . . Electromagnetic 4 | 4 . . . . . . . . . . . . . . . . . Robot Hit Streak 14 | 3 8 8 10 7 . 7 . 14 . . . . . . 6 5 . Robot Miss Streak 10 | 1 2 2 9 10 . 6 . 3 . . . . . . 2 3 . Penetration Max . | . . . . . . . . . . . . . . . . . . Secondary Targets . | . . . . . . . . . . . . . . . . . . Shots Hit Robots 229 | 6 44 28 44 17 . 31 . 24 . . 2 . 7 . 7 19 . Core Hits 147 | 4 15 13 26 19 . 31 . 22 . . . . 4 . 2 10 1 Critical Kills 1 | . . . . . . . . . . . . . . . 1 . . Critical Parts Destroyed 2 | . . . 1 . . . . . . . 1 . . . . . . Critical Strikes 6 | . . . 1 . . . . 3 . . 1 . . . 1 . . Burn 3 | . . . . . . . . 3 . . . . . . . . . Meltdown 1 | . . . . . . . . . . . . . . . 1 . . Destroy 1 | . . . 1 . . . . . . . . . . . . . . Smash 1 | . . . . . . . . . . . 1 . . . . . . Melee Attacks 37 | . . . . . . . 2 7 . 1 6 . 9 . 12 . . Impact 11 | . . . . . . . . 4 . 1 6 . . . . . . Slashing 26 | . . . . . . . 2 3 . . . . 9 . 12 . . Piercing . | . . . . . . . . . . . . . . . . . . Sneak Attacks . | . . . . . . . . . . . . . . . . . . Combat Hostiles . | . . . . . . . . . . . . . . . . . . Follow-up Attacks . | . . . . . . . . . . . . . . . . . . Damage Inflicted 4558 | 69 458 274 438 325 . 478 . 549 . . 92 . 343 . 303 1189 40 Guns 1255 | 69 458 274 150 . . 85 . 219 . . . . . . . . . Cannons 2503 | . . . 288 323 . 393 . 306 . . . . 34 . 216 943 . Explosions 210 | . . . . . . . . . . . . . . . . 210 . Melee 512 | . . . . . . . . 24 . . 92 . 309 . 87 . . Ramming 78 | . . . . 2 . . . . . . . . . . . 36 40 Kinetic 2524 | 31 458 274 438 323 . 393 . 306 . . . . . . . 301 . Thermal 1406 | . . . . . . 85 . 219 . . . . 34 . 216 852 . Explosive . | . . . . . . . . . . . . . . . . . . Electromagnetic 38 | 38 . . . . . . . . . . . . . . . . . Impact 116 | . . . . . . . . 24 . . 92 . . . . . . Slashing 396 | . . . . . . . . . . . . . 309 . 87 . . Piercing . | . . . . . . . . . . . . . . . . . . Highest Corruption 11 | . . . . . . . . . 9 9 . . . . 4 10 11 Average Corruption 7 | . . . . . . . . . 9 9 . . . . 3 9 10 Corruption Purged . | . . . . . . . . . . . . . . . . . . Corruption Blocked . | . . . . . . . . . . . . . . . . . . Effects 34 | . . . . . . . . . 1 6 . . . . 8 9 10 Message Errors 3 | . . . . . . . . . . 1 . . . . . . 2 Matter Fused 11 | . . . . . . . . . . 1 . . . . 4 3 3 Heat Flow Errors 6 | . . . . . . . . . . 1 . . . . 1 1 3 Energy Discharges 3 | . . . . . . . . . . . . . . . . 2 1 Parts Rejected 1 | . . . . . . . . . 1 . . . . . . . . Data Loss (minor) 3 | . . . . . . . . . . 1 . . . . 2 . . Data Loss (major) 3 | . . . . . . . . . . 2 . . . . . 1 . Misfires 1 | . . . . . . . . . . . . . . . . 1 . Alerts 1 | . . . . . . . . . . . . . . . 1 . . Misdirections 2 | . . . . . . . . . . . . . . . . 1 1 Overload Shots . | . . . . . . . . . . . . . . . . . . Overflow Damage 84 | . . . . . . . . . . . 60 . . . 1 23 . Projectiles 24 | . . . . . . . . . . . . . . . 1 23 . Explosions . | . . . . . . . . . . . . . . . . . . Melee 60 | . . . . . . . . . . . 60 . . . . . . Knockbacks 56 | . . . 10 9 . 14 . 17 . . . . . . . 6 . Impact . | . . . . . . . . . . . . . . . . . . Kinetic 46 | . . . 10 8 . 13 . 11 . . . . . . . 4 . Secondary 10 | . . . . 1 . 1 . 6 . . . . . . . 2 . Self-Inflicted Damage 111 | . . . . . . . . . . . . . . . . 92 19 Shots 1 | . . . . . . . . . . . . . . . . 1 . Rammed 5 | . . . . . . . . . . . . . . . . 2 3 Targets Rammed 6 | . . . . 1 . . . . . . . . . . . 2 3 Kicked 1 | . . . . 1 . . . . . . . . . . . . . Crushed . | . . . . . . . . . . . . . . . . . . Highest Temperature 317 | 20 12 18 168 126 . 317 . 117 . 135 48 61 7 14 184 216 222 Average Temperature 54 | 15 6 11 75 48 . 106 . 47 . 76 19 30 3 7 65 57 37 Received Heat Transfer 816 | . 114 66 27 30 . 93 . 27 . . . . 54 . 108 45 252 Effects 3 | . . . . . . 3 . . . . . . . . . . . Energy Bleed 1 | . . . . . . 1 . . . . . . . . . . . Interference 2 | . . . . . . 2 . . . . . . . . . . . Siege Activations . | . . . . . . . . . . . . . . . . . . Robots Corrupted . | . . . . . . . . . . . . . . . . . . Combat Hostiles . | . . . . . . . . . . . . . . . . . . Parts Fried 3 | . . . . . . . . . . . 3 . . . . . . Impact Corruptions 2 | . . . . . . . . . . . 2 . . . . . . Robots Melted 1 | . . . . . . . . . . . . . . . 1 . . Combat Hostiles 1 | . . . . . . . . . . . . . . . 1 . . Parts Melted 5 | . . . . . . . . 1 . . . . . . 3 1 . Heat Transferred 1530 | . . . . . . 148 . 592 . . . . 37 . 185 568 . Parts Sabotaged . | . . . . . . . . . . . . . . . . . . Parts Stolen . | . . . . . . . . . . . . . . . . . . Parts Stripped . | . . . . . . . . . . . . . . . . . . Power Chain Reactions . | . . . . . . . . . . . . . . . . . . Missiles Intercepted . | . . . . . . . . . . . . . . . . . . Alert | -11 -10 -10 -9 -9 -9 -8 -8 -7 -7 -7 -6 -5 -4 -3 -2 -1 -1 ------- Run | Scr Mat Min Mat Min Exi Min Mat Fac Was Fac Fac Fac Fac Res Res Acc Com Peak Influence 575 | 10 218 189 210 222 . 90 147 102 50 55 172 32 81 77 575 559 467 Initial 332 | . 6 84 73 53 . . 35 66 35 35 26 16 15 42 27 332 332 Average 128 | 1 104 154 125 115 . 69 76 54 38 44 89 21 57 49 163 381 389 Maximum Alert Level 2 | . 1 . 1 1 . . . . . . . . . . 2 2 2 Low Security (%) 78 | 100 79 100 83 65 . 100 100 100 100 100 100 100 100 100 71 . . Level 1 16 | . 20 . 16 34 . . . . . . . . . . 10 83 56 Level 2 4 | . . . . . . . . . . . . . . . 18 16 43 Level 3 . | . . . . . . . . . . . . . . . . . . Level 4 . | . . . . . . . . . . . . . . . . . . Level 5 . | . . . . . . . . . . . . . . . . . . High Security . | . . . . . . . . . . . . . . . . . . Max Security . | . . . . . . . . . . . . . . . . . . Squads Dispatched 20 | . 2 . 2 1 . . 3 1 . . . . . . 6 4 1 Investigation 9 | . 2 . 1 1 . . 1 . . . . . . . 2 2 . Extermination 3 | . . . . . . . . 1 . . . . . . 1 1 . Reinforcement 7 | . . . 1 . . . 2 . . . . . . . 3 . 1 Assault 1 | . . . . . . . . . . . . . . . . 1 . Garrison . | . . . . . . . . . . . . . . . . . . Intercept . | . . . . . . . . . . . . . . . . . . Searches Triggered . | . . . . . . . . . . . . . . . . . . Construction Impeded . | . . . . . . . . . . . . . . . . . . Haulers Reinforced . | . . . . . . . . . . . . . . . . . . Active Scanning Responses . | . . . . . . . . . . . . . . . . . . Cargo Convoy Interrupts . | . . . . . . . . . . . . . . . . . . Stealth | -11 -10 -10 -9 -9 -9 -8 -8 -7 -7 -7 -6 -5 -4 -3 -2 -1 -1 --------- Run | Scr Mat Min Mat Min Exi Min Mat Fac Was Fac Fac Fac Fac Res Res Acc Com Distress Signals 7 | . 1 . 1 . . . . . . . . . . . 3 . 2 Communications Jammed . | . . . . . . . . . . . . . . . . . . Distress Signals . | . . . . . . . . . . . . . . . . . . Times Spotted 146 | . 10 5 12 10 . 9 3 5 4 . 6 . 3 1 47 10 21 Peak Tracking Total 16 | . 3 3 4 3 . 4 4 3 4 . 5 . 1 1 16 4 16 Tactical Retreats 16 | . 2 . . . . 1 1 . . . 1 . . . 9 . 2 Traps | -11 -10 -10 -9 -9 -9 -8 -8 -7 -7 -7 -6 -5 -4 -3 -2 -1 -1 ------- Run | Scr Mat Min Mat Min Exi Min Mat Fac Was Fac Fac Fac Fac Res Res Acc Com Traps Triggered 13 | . 1 . . . . . . 2 . . 1 . . . 5 . 4 Indirectly . | . . . . . . . . . . . . . . . . . . Trap Hack Attempts . | . . . . . . . . . . . . . . . . . . Triggered . | . . . . . . . . . . . . . . . . . . Disarmed . | . . . . . . . . . . . . . . . . . . Reprogrammed . | . . . . . . . . . . . . . . . . . . Reused . | . . . . . . . . . . . . . . . . . . Traps Extracted . | . . . . . . . . . . . . . . . . . . Installed . | . . . . . . . . . . . . . . . . . . Triggered . | . . . . . . . . . . . . . . . . . . Exploded 1 | . . . . . 1 . . . . . . . . . . . . Machines | -11 -10 -10 -9 -9 -9 -8 -8 -7 -7 -7 -6 -5 -4 -3 -2 -1 -1 ---------- Run | Scr Mat Min Mat Min Exi Min Mat Fac Was Fac Fac Fac Fac Res Res Acc Com Machines Disabled 2 | . . . . . . . . . . . . . . . . 2 . Max in Single Turn 1 | . . . . . . . . . . . . . . . . 1 . Garrison Access 5 | . . . . . . . . 1 . . . . 1 1 1 1 . Energy Cycler 1 | . . . . . . . . . . . . . . . . 1 . Machines Sabotaged . | . . . . . . . . . . . . . . . . . . Garrisons Compromised . | . . . . . . . . . . . . . . . . . . Overloaded Fab Kills . | . . . . . . . . . . . . . . . . . . Hacking | -11 -10 -10 -9 -9 -9 -8 -8 -7 -7 -7 -6 -5 -4 -3 -2 -1 -1 --------- Run | Scr Mat Min Mat Min Exi Min Mat Fac Was Fac Fac Fac Fac Res Res Acc Com Machines Accessed 35 | . 2 . 3 1 1 . 2 4 . 2 3 1 2 3 5 5 1 Terminals 25 | . 2 . 3 . . . 2 1 . 2 3 1 1 1 4 4 1 Fabricators 1 | . . . . . . . . 1 . . . . . . . . . Repair Stations 1 | . . . . . . . . 1 . . . . . . . . . Recycling Units . | . . . . . . . . . . . . . . . . . . Scanalyzers 1 | . . . . . . . . . . . . . . 1 . . . Garrison Access 5 | . . . . . . . . 1 . . . . 1 1 1 1 . Total Hacks 92 | . 7 . 9 1 1 . 10 9 . 4 12 2 4 9 13 10 1 Successful 41 | . 4 . 4 1 1 . 3 3 . 2 6 2 2 4 6 2 1 Failed 51 | . 3 . 5 . . . 7 6 . 2 6 . 2 5 7 8 . Catastrophic 14 | . . . . . . . 1 3 . 2 3 . . . 1 4 . Database Lockouts . | . . . . . . . . . . . . . . . . . . Manual 53 | . 7 . 9 . 1 . 10 1 . 2 11 2 2 . 8 . . Terminals 72 | . 7 . 9 . . . 10 1 . 4 12 2 2 4 12 8 1 Fabricators 4 | . . . . . . . . 4 . . . . . . . . . Repair Stations 2 | . . . . . . . . 2 . . . . . . . . . Recycling Units . | . . . . . . . . . . . . . . . . . . Scanalyzers 2 | . . . . . . . . . . . . . . 2 . . . Garrison Access 10 | . . . . . . . . 2 . . . . 2 3 1 2 . Terminal Hacks 19 | . 2 . 1 1 1 . 1 . . 1 3 1 . 2 3 2 1 Record 3 | . . . . . . . . . . . . . . . 1 1 1 Open Door 1 | . . . . 1 . . . . . . . . . . . . . Level Access Points 3 | . . . . . . . . . . . 1 1 . 1 . . . Branch Access Points 2 | . 1 . 1 . . . . . . . . . . . . . . Emergency Access Points 1 | . 1 . . . . . . . . . . . . . . . . Terminal Index 2 | . . . . . . . . . . . 1 . . . 1 . . Alert Level 4 | . . . . . . . 1 . . . 1 . . 1 1 . . Locate Traps 1 | . . . . . . . . . . 1 . . . . . . . Zone Layout 1 | . . . . . . . . . . . . . . . . 1 . EX-Prototype ID Bank 1 | . . . . . 1 . . . . . . . . . . . . Fabricator Hacks . | . . . . . . . . . . . . . . . . . . Repair Station Hacks 2 | . . . . . . . . 2 . . . . . . . . . Scan Component 1 | . . . . . . . . 1 . . . . . . . . . Repair 1 | . . . . . . . . 1 . . . . . . . . . Recycling Unit Hacks . | . . . . . . . . . . . . . . . . . . Scanalyzer 1 | . . . . . . . . . . . . . . 1 . . . Insert Component 1 | . . . . . . . . . . . . . . 1 . . . Garrison Access Hacks 4 | . . . . . . . . 1 . . . . 1 1 1 . . Seal Access 4 | . . . . . . . . 1 . . . . 1 1 1 . . Unauthorized Hacks 15 | . 2 . 3 . . . 2 . . 1 3 1 1 . 2 . . Terminals 15 | . 2 . 3 . . . 2 . . 1 3 1 1 . 2 . . Assimilate 1 | . . . . . . . . . . . . . . . 1 . . Botnet 14 | . 2 . 3 . . . 2 . . 1 3 1 1 . 1 . . Fabricators . | . . . . . . . . . . . . . . . . . . Repair Stations . | . . . . . . . . . . . . . . . . . . Recycling Units . | . . . . . . . . . . . . . . . . . . Scanalyzers . | . . . . . . . . . . . . . . . . . . Garrison Access . | . . . . . . . . . . . . . . . . . . Data Cores Recovered . | . . . . . . . . . . . . . . . . . . Used . | . . . . . . . . . . . . . . . . . . Hacking Detections 26 | . 2 . 2 . . . 2 3 . 2 3 . 2 1 4 5 . Full Trace Events 6 | . 1 . 1 . . . 1 . . . . . . . 1 2 . Feedback Events . | . . . . . . . . . . . . . . . . . . Feedback Blocked . | . . . . . . . . . . . . . . . . . . Robot Schematics Acquired . | . . . . . . . . . . . . . . . . . . Robots Built . | . . . . . . . . . . . . . . . . . . Authchips . | . . . . . . . . . . . . . . . . . . Time . | . . . . . . . . . . . . . . . . . . Total Robot Build Rating . | . . . . . . . . . . . . . . . . . . Part Schematics Acquired . | . . . . . . . . . . . . . . . . . . Parts Built . | . . . . . . . . . . . . . . . . . . Authchips . | . . . . . . . . . . . . . . . . . . Time . | . . . . . . . . . . . . . . . . . . Total Part Build Rating . | . . . . . . . . . . . . . . . . . . Parts Repaired 1 | . . . . . . . . 1 . . . . . . . . . Time 38 | . . . . . . . . 38 . . . . . . . . . Parts Recycled . | . . . . . . . . . . . . . . . . . . Recycled Matter . | . . . . . . . . . . . . . . . . . . Retrieved Matter . | . . . . . . . . . . . . . . . . . . Retrieved Components . | . . . . . . . . . . . . . . . . . . Parts Scanalyzed . | . . . . . . . . . . . . . . . . . . Part Schematics Acquired . | . . . . . . . . . . . . . . . . . . Parts Damaged . | . . . . . . . . . . . . . . . . . . Bothacking | -11 -10 -10 -9 -9 -9 -8 -8 -7 -7 -7 -6 -5 -4 -3 -2 -1 -1 ------------ Run | Scr Mat Min Mat Min Exi Min Mat Fac Was Fac Fac Fac Fac Res Res Acc Com Used RIF Installer . | . . . . . . . . . . . . . . . . . . Robots Hacked . | . . . . . . . . . . . . . . . . . . Non-combat . | . . . . . . . . . . . . . . . . . . Combat . | . . . . . . . . . . . . . . . . . . Robot Hacks Applied . | . . . . . . . . . . . . . . . . . . Relay Couplers Released 1 | . . . . . . . . . . . . . . . . 1 . Machine Destruction 1 | . . . . . . . . . . . . . . . . 1 . Fabnet Peak Effective % . | . . . . . . . . . . . . . . . . . . Robots Rewired . | . . . . . . . . . . . . . . . . . . Allies Hacked . | . . . . . . . . . . . . . . . . . . Hacks Repelled . | . . . . . . . . . . . . . . . . . . Allies | -11 -10 -10 -9 -9 -9 -8 -8 -7 -7 -7 -6 -5 -4 -3 -2 -1 -1 -------- Run | Scr Mat Min Mat Min Exi Min Mat Fac Was Fac Fac Fac Fac Res Res Acc Com Total Allies 2 | . . . . 1 . . . . . . . . . . 1 . . Largest Group 1 | . . . . 1 . . . . . . . . . . 1 . . Highest-Rated Group 45 | . . . . 31 . . . . . . . . . . 45 . . Highest-Rated Ally 45 | . . . . 31 . . . . . . . . . . 45 . . Total Orders 1 | . . . . . . . . . . . . . . . 1 . . STAY 1 | . . . . . . . . . . . . . . . 1 . . Ally Attacks 12 | . . . . 12 . . . . . . . . . . . . . Total Damage 103 | . . . . 103 . . . . . . . . . . . . . Kills 2 | . . . . 2 . . . . . . . . . . . . . Allies Corrupted . | . . . . . . . . . . . . . . . . . . Allies Melted . | . . . . . . . . . . . . . . . . . . Intel | -11 -10 -10 -9 -9 -9 -8 -8 -7 -7 -7 -6 -5 -4 -3 -2 -1 -1 ------- Run | Scr Mat Min Mat Min Exi Min Mat Fac Was Fac Fac Fac Fac Res Res Acc Com Robot Analysis Total . | . . . . . . . . . . . . . . . . . . Derelict Logs Recovered 3 | . . . . 3 . . . . . . . . . . . . . Drone Launches . | . . . . . . . . . . . . . . . . . . Drone Recoveries . | . . . . . . . . . . . . . . . . . . Exploration | -11 -10 -10 -9 -9 -9 -8 -8 -7 -7 -7 -6 -5 -4 -3 -2 -1 -1 ------------- Run | Scr Mat Min Mat Min Exi Min Mat Fac Was Fac Fac Fac Fac Res Res Acc Com Turns Passed 7256 | 95 263 188 602 711 414 654 293 609 32 186 573 69 343 640 716 641 227 Spaces Moved 8431 | 45 177 102 284 348 218 301 345 1206 83 530 1056 196 365 786 1395 666 328 Core 434 | 30 . . . . . 3 . . . . . . . . 11 376 14 Treads 174 | . . . 24 . . 150 . . . . . . . . . . . Legs 961 | . . . 199 348 218 148 48 . . . . . . . . . . Wheels 385 | 15 177 102 61 . . . . . . . . . . . . 30 . Hover 806 | . . . . . . . . . . . . . . . 232 260 314 Flight 5671 | . . . . . . . 297 1206 83 530 1056 196 365 786 1152 . . Fastest Speed 27 | 50 80 95 115 190 190 120 31 31 31 31 27 27 27 28 28 50 50 Average Speed 61 | 150 94 113 167 190 190 196 51 31 31 31 30 27 32 30 36 77 58 Slowest Speed 650 | 250 95 115 240 190 190 650 360 31 31 31 131 27 194 108 160 550 250 Overloaded Moves . | . . . . . . . . . . . . . . . . . . Propulsion Burnouts . | . . . . . . . . . . . . . . . . . . Robots Hopped 24 | . . . . . . . 3 13 . 2 . . . 3 3 . . Cave-ins Triggered . | . . . . . . . . . . . . . . . . . . Exploration Rate (%) 29 | 4 36 32 31 64 59 58 26 27 74 14 25 7 8 12 29 14 17 Regions Visited 17 Branch Regions 5 Pre-discovered Areas 1 | . . . . 1 . . . . . . . . . . . . . Known Exits Taken 8 | . 1 . 1 . . . 1 . . 1 1 1 1 1 . . . Unknown Exits Taken 7 | 1 . 1 . 1 1 1 . . . . . . . . 1 1 . Scrap Searched 3 | . . . . 2 . 1 . . . . . . . . . . . Spaces Dug 107 | . . . . . . . 2 3 . 1 10 5 14 36 25 . 11 Terrain Destroyed 136 | . . . . . . . 2 3 . 1 11 6 14 37 29 22 11 Melee 17 | . . . . . . . 2 3 . 1 1 . . . 10 . . Projectile 103 | . . . . . . . . . . . 10 6 14 37 19 6 11 AOE 16 | . . . . . . . . . . . . . . . . 16 . Terrain Rammed . | . . . . . . . . . . . . . . . . . . Walls Destroyed . | . . . . . . . . . . . . . . . . . . Machines Disabled . | . . . . . . . . . . . . . . . . . . Actions | -11 -10 -10 -9 -9 -9 -8 -8 -7 -7 -7 -6 -5 -4 -3 -2 -1 -1 --------- Run | Scr Mat Min Mat Min Exi Min Mat Fac Was Fac Fac Fac Fac Res Res Acc Com Total 10043 | 61 216 139 365 377 219 334 451 1386 88 547 1288 204 561 1145 1557 755 350 Wait 1097 | . 2 8 18 13 . 4 82 158 5 16 190 . 159 303 101 38 . Move 8367 | 44 176 101 283 347 217 300 338 1180 82 525 1055 195 364 779 1388 665 328 Hop 24 | . . . . . . . 3 13 . 2 . . . 3 3 . . Pick Up 53 | 6 3 2 10 5 1 4 2 3 . 1 5 . 1 3 2 4 1 Fast Attach 68 | 6 1 1 2 . . 3 11 4 1 . 7 2 2 4 13 11 . Attach 38 | . 1 1 5 . . 1 . 2 . . 1 . 6 6 9 5 1 Detach 18 | . . . . . . . 1 1 . . . . 4 5 5 2 . Swap 15 | 1 1 . 3 1 . 1 1 1 . 1 4 . . 1 . . . Drop 49 | . 1 . 9 . 1 3 11 3 . 1 10 1 1 4 . 4 . Fire 266 | 4 31 26 35 10 . 18 . 14 . . 10 6 15 37 24 24 12 Melee 37 | . . . . . . . 2 7 . 1 6 . 9 . 12 . . Ram 5 | . . . . . . . . . . . . . . . . 2 3 Kick 1 | . . . . 1 . . . . . . . . . . . . . Crush . | . . . . . . . . . . . . . . . . . . Escape Stasis 5 | . . . . . . . . . . . . . . . . . 5 Rewire . | . . . . . . . . . . . . . . . . . . Trap . | . . . . . . . . . . . . . . . . . . Miscellaneous . | . . . . . . . . . . . . . . . . . . Route ------- -11/Scrapyard -10/Materials -10/Mines -9/Materials (discovered 2 exits: *Min x2) -9/Mines (discovered 3 exits: *Mat x2 / *Exi) -9/Exiles -8/Mines -8/Materials -7/Factory -7/Waste -7/Factory (discovered 2 exits: *Fac / *Low) -6/Factory (discovered 4 exits: *Fac x4) -5/Factory (discovered 5 exits: *Fac x4 / *Upp) -4/Factory -3/Research (discovered 3 exits: *Res x3) -2/Research -1/Access -1/Command History --------- Turn | Location | Event 26 | -11/Scrapyard | Discovered new exit (range 15) 96 | -11/Scrapyard | Entered Materials 183 | -10/Materials | Discovered new exit (range 16) 307 | -10/Materials | Build established: Mutant 313 | -10/Materials | Identified exit to Mines 359 | -10/Materials | Entered Mines 454 | -10/Mines | Discovered new exit (range 8) 547 | -10/Mines | Entered Materials 547 | -9/Materials | Evolved 2 slots: Propulsion x2 991 | -9/Materials | Identified exit to Mines 1149 | -9/Materials | Entered Mines 1152 | -9/Mines | Received a Mining Laser from a helpful Derelict 1172 | -9/Mines | Learned location of Storage (-7) 1180 | -9/Mines | Learned 2 Materials zone layouts 1221 | -9/Mines | Discovered new exit (range 6) 1237 | -9/Mines | Met a Derelict shopkeep closing up shop 1426 | -9/Mines | Learned location of 1 exit from Proximity Caves 1680 | -9/Mines | Discovered new exit (range 9) 1704 | -9/Mines | Joined a pair of Derelicts in attacking an 0b10 outpost 1851 | -9/Mines | Deemed a non-threat by the Exiles lab entrance 1853 | -9/Mines | Discovered new exit (range 5) 1860 | -9/Mines | Entered Exiles 1908 | -9/Exiles | Met 8R-AWN 1940 | -9/Exiles | Met EX-HEX 1995 | -9/Exiles | Met EX-BIN 2016 | -9/Exiles | Aligned with FarCom system 2018 | -9/Exiles | Given EX-Vault access code 2071 | -9/Exiles | Opened EX-Vault 2085 | -9/Exiles | Found Cloak of Protection 2126 | -9/Exiles | Warned to stay clear of 0b10 Research branches 2150 | -9/Exiles | Exiles lab attacked by MAIN.C 2246 | -9/Exiles | Discovered new exit (range 14) 2274 | -9/Exiles | Left Exiles lab with Cloak of Protection 2274 | -9/Exiles | Entered Mines 2869 | -8/Mines | Discovered new exit (range 11) 2928 | -8/Mines | Entered Materials 2928 | -8/Materials | Evolved 2 slots: Utility x2 3218 | -8/Materials | Discovered new exit (range 9) 3220 | -8/Materials | Identified exit to Factory 3221 | -8/Materials | Entered Factory 3221 | -7/Factory | Evolved 2 slots: Utility x2 3313 | -7/Factory | Build established: Sprinter 3458 | -7/Factory | Repaired Imp. Heat Sink 3513 | -7/Factory | Discovered new exit (range 8) 3516 | -7/Factory | Identified exit to Lower Caves 3830 | -7/Factory | Sucked down chute 3830 | -7/Factory | Entered Waste 3833 | -7/Waste | Spotted C-40 Crusher 3835 | -7/Waste | Spotted C-40 Crusher 3845 | -7/Waste | EMP discharged 3847 | -7/Waste | Spotted C-40 Crusher 3851 | -7/Waste | Spotted C-40 Crusher 3853 | -7/Waste | Spotted C-40 Crusher 3856 | -7/Waste | Discovered new exit (range 16) 3857 | -7/Waste | Spotted C-40 Crusher 3862 | -7/Waste | Identified exit to Factory 3862 | -7/Waste | Entered Factory 3964 | -7/Factory | Discovered exit to Lower Caves (range 12) 3993 | -7/Factory | Build established: Hacker-Sprinter 4038 | -7/Factory | Discovered new exit (range 11) 4040 | -7/Factory | Identified exit to Factory 4048 | -7/Factory | Entered another Factory area 4048 | -6/Factory | Evolved 2 slots: Propulsion x1, Utility x1 4454 | -6/Factory | Build established: Hacker-Scout 4510 | -6/Factory | Discovered new exit (range 20) 4605 | -6/Factory | Identified exit to Factory 4621 | -6/Factory | Entered another Factory area 4621 | -5/Factory | Evolved 2 slots: Propulsion x1, Utility x1 4658 | -5/Factory | Discovered new exit (range 5) 4659 | -5/Factory | Identified exit to Upper Caves 4666 | -5/Factory | Identified exit to Factory 4690 | -5/Factory | Entered another Factory area 4690 | -4/Factory | Evolved 2 slots: Power x1, Utility x1 4952 | -4/Factory | Discovered new exit (range 16) 5033 | -4/Factory | Identified exit to Research 5033 | -4/Factory | Entered Research 5033 | -3/Research | Evolved 2 slots: Utility x2 5079 | -3/Research | Build established: Hacker-Sprinter 5632 | -3/Research | Identified exit to Research 5673 | -3/Research | Entered another Research area 5673 | -2/Research | Evolved 2 slots: Utility x2 6042 | -2/Research | Lost 5 parts (3n1u1w) 6114 | -2/Research | Spotted B-90 Cyclops 6152 | -2/Research | Spotted B-90 Cyclops 6359 | -2/Research | Lost 5 parts (1p3n1u) 6375 | -2/Research | Discovered new exit (range 15) 6383 | -2/Research | Released all parts (15) 6384 | -2/Research | Core integrity fell below 50% 6389 | -2/Research | Entered Access 6389 | -1/Access | Evolved 2 slots: Utility x1, Weapon x1 6412 | -1/Access | Lost 3 parts (2n1u) 6685 | -1/Access | Build established: Mutant 6795 | -1/Access | System corruption reached 10% 6880 | -1/Access | Energy Cycler disabled 7006 | -1/Access | Lost 4 parts (4n) 7026 | -1/Access | Discovered new exit (range 9) 7030 | -1/Access | Entered Command 7238 | -1/Command | Spotted Alpha 7 7238 | -1/Command | Spotted Alpha 7 7239 | -1/Command | Spotted Striker 7239 | -1/Command | Spotted Executioner 7239 | -1/Command | Spotted Executioner 7239 | -1/Command | Spotted Striker 7242 | -1/Command | Spotted Executioner 7242 | -1/Command | Spotted Executioner 7250 | -1/Command | Core integrity fell below 50% 7251 | -1/Command | Spotted B-99 Colossus 7251 | -1/Command | Spotted B-99 Colossus 7255 | -1/Command | Core integrity fell below 20% 7257 | -1/Command | Destroyed by G-73 Enforcer with Heavy Laser Last Messages --------------- 07254_ Penetrated by Slug. 07254_ Striker suffers critical hit (Destroy). 07254_ Slug penetrates Executioner. 07254_ Penetrated by Slug. 07254_ Slug penetrates Striker. 07254_ Slug penetrates Alpha 7. 07254_ Field strength at 51. 07255_ Penetrated by Slug. 07255_ Slug penetrates Wall. 07255_ Penetrated by Slug. 07255_ Slug penetrates Striker. 07255_ Slug penetrates Wall. 07255_ Slug penetrates Door. 07255_ Slug penetrates Wall. 07255_ Stasis field depleted. 07256_ Penetrated by Slug. 07256_ Slug penetrates Wall. 07256_ Triggered Stasis Trap. 07256_ A bubble of rippling energy engulfs the area. 07256_ Field strength at 94. Map ----- +----------------------------------------------------+ | ?????????????????????????????????????????????????? | | ?????????????????????????????????????????????????? | | ?????????????????????????????????????????????????? | | ?????????????????????????????????????????????????? | | ?????????????????????????????????????????????????? | | ?????????????????????????????????????????????????? | | ?????????????????????????????????????????????????? | | ?????????????????????????????????????????????????? | | ?????????????????????????????????????????????????? | | ?????????????????????????????????????????????????? | | ?????????????????????????????????????????????????? | | ????????????????????? ???????? ??????????????????? | | ???????????????????# ?????? #????????????????? | | ???????????????????# ?????? #??????????????### | | ???????????????????# ?????? ???????????????# | | ???????????????????? """""" ???????????????# | | ????????????????????? ^ ????????????????#!! | | ????????????????????? BB ????????????????#!! | | ?????????????????????? BB BB?????????????#####! | | ?????????????????????##BB ^ ##????????????# " | | ?????????????????????? ^ ?????????????##### | | ?????????????????????## ^##?#?????????????## | | ?????????????????????# ^ E ### #############""# | | ?????????????????????## ^ E### " """T""" ### | | ?????????????????????# EE% ###### """ """ #?? | | ?????????????????????## @ K;#????# #?? | | ?????????????????????# ^ #????# #?? | | ?????????????????????## K ##????# #?? | | ?????????????????????#;^% #?????# #?? | | ?????????????????????###7//7##?????# != #?? | | ????????????#########??# %#??????# ]= #?? | | ??????????? # #??????# ] #?? | | ??????????? ; g#??????# ! ##? | | ??????????? + #??????# ! #? | | ??????????? # g;??????# ##? | | ??????????? # g;#?????# #?? | | ????????????##+#######?# ;############/######## | | ???????????????????????#% gY w | | ???????????????????????# | | ???????????????????????# | | ???????????????????? | | ???????????????????######"##############/######### | | ???????????????????????? ?????????????? ??????? | | ???????????????????????? ??????????????? ????# | | ???????????????????????? ??????????????? """"???# | | ???????????????????????? ???????????# ""Y""??# | | ????????????????????????= ??????????# # | | ???????????????????????== ???????????# + | | ??????????????????????? ???????????# # | | ????????????????????#############?????#####+####+# | +----------------------------------------------------+ Best States ------------- Heat Dissipation 71 Energy Generation 33 Energy Capacity 515 Matter Stores 300 Matter Capacity 300 Sight Range 16 Terrain Scan Range 20 Terrain Scan Density 210 ECM Strength 2 Additional Mass Support 9 Armor Coverage 150 Evasion (%) 64 Targeting Accuracy 6 Melee Accuracy 16 Target Analysis 8 Recoil Reduction 2 Offensive Hacking 20 Defensive Hacking 20 Item Schematics ----------------- None Robot Schematics ------------------ None Fabricated ------------ Nothing Alien Tech Used ----------------- None Achievements -------------- None Challenges ------------ None Game ------ Seed ThunderReactionDeconstructor Manual? 0 Play Time 01:43:39 Cumulative 52.7 hours Start 2022.03.29 @ 21:33:50 End 2022.03.31 @ 20:34:05 Sessions 5 Manual Loads 0 Difficulty Rogue Special Mode None Game No. 86 Rogue 86 Adventurer 0 Explorer 0 Win Type - Total 0 Types 0/0/0/0/0/0/0/0/0 Lore% 37 Gallery% 47 Achievement% 31 Wizard Run 0 Options --------- ASCII 0 Keyboard 0 Movement Numpad Keybinds 0 Fullscreen 1 Font 18/SmallcapsGlow Map View 76x50 Tactical HUD 1 Map Filters NONE Filters NONE Steam 1 RUN: f8aa5812-0c72-4151-976c-50596504cd03